fUSD/lending_fUSD_20241219
["ID","MTS","AMOUNT","RATE_DAILY","PERIOD"]
[345995853,1734615087701,-528.35207104,0.00024109,4]
[345995854,1734615087710,-1091.25,0.00024109,4]
[345995855,1734615087719,-500.0,0.00024109,4]
[345995856,1734615087729,-500.0,0.00024109,4]
[345995857,1734615087741,-500.0,0.00024109,4]
[345995858,1734615087750,-534.72,0.00024109,4]
[345995859,1734615087759,-1083.63556582,0.00024109,4]
[345995860,1734615087773,-47.88443418,0.00024109,4]
[345995861,1734615087783,-560.47269531,0.00024109,4]
[345995862,1734615091199,903.94,0.00019382,2]
[345995864,1734615423231,42896.18764374,0.000225,30]
[345995865,1734616012088,858.74,0.0001823,2]
[345995866,1734616051965,1500.0,0.0001993,2]
[345995867,1734616069217,23357.34008901,0.00019969,2]
[345995868,1734616074262,267.66721214,0.00018,3]
[345995869,1734616131951,199.63,0.00010137,2]
[345995870,1734616132180,199.63,0.00016813,2]
[345995883,1734616232536,-475.79,0.00019945,2]
[345995884,1734616232546,-33.5300057,0.00019969,2]
[345995885,1734616232671,-254.84990768,0.00019969,2]
[345995886,1734616232683,-244.27999761,0.00019969,2]
[345995887,1734616232694,-218.16360644,0.00020032,2]
[345995888,1734616232703,-600.0,0.00020068,2]
[345995889,1734616232713,-31464.7,0.00020068,2]
[345995890,1734616232722,-222.81,0.00020095,2]
[345995891,1734616232732,-250.0,0.00020131,2]
[345995892,1734616232741,-188.24,0.0002017,2]
[345995893,1734616232750,-713.35050817,0.00020188,2]
[345995902,1734616238323,-310.24010705,0.00019892,2]
[345995903,1734616238471,-6874.31989295,0.00019892,2]
[345995904,1734616238482,-231.7043606,0.00020188,2]
[345995905,1734616238494,-54.94513123,0.00020188,2]
[345995906,1734616238504,-250.0,0.00020278,2]
[345995907,1734616238514,-250.0,0.00020392,2]
[345995908,1734616238524,-639.51,0.00020452,2]
[345995909,1734616238534,-858.74,0.00020494,2]
[345995910,1734616238543,-165.04,0.00020512,2]
[345995911,1734616238553,-4337.89,0.00020627,2]
[345995912,1734616238563,-464.08,0.00020686,2]
[345995913,1734616238573,-218.16360643,0.000207,2]
[345995914,1734616238583,-200.0,0.0002074,2]
[345995915,1734616238592,-599.16304403,0.00020774,2]
[345995916,1734616238604,-259.75225597,0.00020774,2]
[345995917,1734616238613,-1000.0,0.00020774,2]
[345995918,1734616238623,-500.0,0.00020774,2]
[345995919,1734616238632,-240.49079405,0.00020775,2]
[345995931,1734616240395,-1018.8549322,0.00020775,2]
[345995957,1734616243311,-22699.06696494,0.00020775,2]
[345995958,1734616243321,-150.0,0.0002079,2]
[345995959,1734616243333,-2500.0,0.000208,2]
[345995960,1734616243343,-166.81907161,0.000208,2]
[345995961,1734616243354,-430.01192839,0.000208,2]
[345995962,1734616243364,-164.47825691,0.00020815,2]
[345995963,1734616243424,-891.52174309,0.00020815,2]
[345995964,1734616243433,-188.24,0.00020822,2]
[345995965,1734616243443,-250.0,0.00020826,2]
[345995966,1734616243453,-413.1641652,0.00020875,2]
[345995967,1734616243481,-336.51867189,0.00020875,2]
[345995968,1734616246224,-509.1,0.00020875,2]
[345995969,1734616246340,-3916.84869821,0.00020875,2]
[345995970,1734616246509,-2142.58242263,0.00020875,2]
[345995993,1734617133803,166.81,0.00010137,2]
[345995996,1734617171725,3000.0,0.00010137,2]
[345995997,1734617171764,3000.0,0.00015137,2]
[345995998,1734617191170,854.28,0.00017758,2]
[345995999,1734617219536,275.7636,0.00017758,2]
[345996000,1734617262308,2000.0,0.00017758,2]
[345996001,1734617284283,450.0,0.00013,2]
[345996002,1734617305108,229.803,0.00017758,2]
[345996003,1734617347913,1666.66666,0.00017758,2]
[345996004,1734617390720,191.5025,0.00017758,2]
[345996011,1734617432441,-1902.44760093,0.00019279,2]
[345996012,1734617432453,-22183.53592707,0.00019279,2]
[345996013,1734617432463,-200.0,0.00019377,2]
[345996014,1734617432472,-165.04,0.00019377,2]
[345996015,1734617432481,-250.0,0.00019444,2]
[345996016,1734617432491,-211.67133403,0.00019528,2]
[345996017,1734617432500,-2998.84,0.00019548,2]
[345996018,1734617432509,-21554.67107885,0.00019628,2]
[345996019,1734617432540,-875.0,0.00019628,2]
[345996020,1734617432551,-471.32155123,0.00019628,2]
[345996021,1734617432564,-479.3635473,0.00019628,2]
[345996022,1734617432664,-22137.29382262,0.00019628,2]
[345996023,1734617432673,-500.0,0.00019654,2]
[345996024,1734617432683,-369.31746665,0.00019876,2]
[345996025,1734617432694,-2751.0,0.00019964,2]
[345996026,1734617432703,-139.57165352,0.00019985,2]
[345996027,1734617432715,-860.42834648,0.00019985,2]
[345996028,1734617432725,-1506.0,0.0002,3]
[345996029,1734617432734,-1506.0,0.0002,3]
[345996030,1734617432745,-289.55231188,0.0002,3]
[345996031,1734617432757,-961.67907138,0.0002,3]
[345996032,1734617432768,-254.76861674,0.0002,3]
[345996033,1734617432778,-1506.0,0.0002,3]
[345996034,1734617432786,-854.28,0.00020022,2]
[345996035,1734617432795,-241.48180877,0.00020028,3]
[345996037,1734617432805,-199799.98524738,0.00020028,3]
[345996038,1734617432815,-23900.0,0.00020029,2]
[345996039,1734617432824,-250.0,0.00020072,2]
[345996040,1734617432833,-204.37,0.00020082,2]
[345996041,1734617432846,-369.31746665,0.0002011,2]
[345996043,1734617432856,-222.81,0.00020137,2]
[345996046,1734617432866,-150.0,0.00020158,2]
[345996048,1734617432876,-300.0,0.00020385,2]
[345996050,1734617432888,-369.31746665,0.00020396,2]
[345996052,1734617432897,-364.93,0.00020478,2]
[345996053,1734617432907,-998.24,0.00020478,2]
[345996054,1734617432916,-250.0,0.00020496,2]
[345996055,1734617432926,-737.1828589,0.0002057,2]
[345996056,1734617432936,-516.06,0.00020583,2]
[345996057,1734617432945,-721.18,0.00020628,2]
[345996058,1734617432955,-8768.4388679,0.0002067,2]
[345996059,1734617432964,-21562.57142208,0.00020675,2]
[345996060,1734617432974,-369.31746668,0.0002069,2]
[345996061,1734617432983,-164.83,0.00020692,2]
[345996062,1734617432994,-1416.21,0.00020733,2]
[345996063,1734617433004,-1000.0,0.00020775,2]
[345996065,1734617433013,-706.2354,0.00020775,2]
[345996066,1734617433024,-40708.43564007,0.00020778,2]
[345996067,1734617433034,-164.42,0.00020783,2]
[345996069,1734617433043,-737.1828589,0.000208,2]
[345996071,1734617433054,-254.96,0.00020822,2]
[345996073,1734617433063,-204.37,0.00020825,2]
[345996074,1734617433073,-976.54,0.00020878,2]
[345996076,1734617433083,-976.54,0.00020878,2]
[345996078,1734617433092,-976.54,0.00020878,2]
[345996080,1734617433103,-2500.0,0.00020968,2]
[345996081,1734617433113,-507.98,0.00021068,2]
[345996082,1734617433123,-498.15,0.00021068,2]
[345996083,1734617433133,-504.26,0.00021068,2]
[345996084,1734617433143,-495.63,0.00021068,2]
[345996085,1734617433154,-496.64,0.00021068,2]
[345996086,1734617433164,-496.65,0.00021068,2]
[345996087,1734617433173,-494.64,0.00021068,2]
[345996088,1734617433184,-504.87,0.00021068,2]
[345996089,1734617433194,-496.45,0.00021068,2]
[345996090,1734617433204,-491.44,0.00021068,2]
[345996091,1734617433215,-501.47,0.00021068,2]
[345996092,1734617433225,-501.08,0.00021068,2]
[345996093,1734617433235,-509.31,0.00021068,2]
[345996094,1734617433247,-492.64,0.00021068,2]
[345996095,1734617433257,-501.33,0.00021068,2]
[345996096,1734617433267,-492.08,0.00021068,2]
[345996097,1734617433278,-495.35,0.00021068,2]
[345996098,1734617433289,-507.86,0.00021068,2]
[345996099,1734617433299,-497.63,0.00021068,2]
[345996100,1734617433309,-498.21,0.00021068,2]
[345996101,1734617433319,-505.55,0.00021068,2]
[345996102,1734617433330,-504.73,0.00021068,2]
[345996103,1734617433340,-495.26,0.00021068,2]
[345996104,1734617433350,-499.55,0.00021068,2]
[345996105,1734617433360,-507.05,0.00021068,2]
[345996106,1734617433370,-498.1,0.00021068,2]
[345996107,1734617433379,-490.55,0.00021068,2]
[345996108,1734617433389,-506.91,0.00021068,2]
[345996109,1734617433399,-508.06,0.00021068,2]
[345996110,1734617433409,-506.61,0.00021068,2]
[345996111,1734617433419,-494.96,0.00021068,2]
[345996112,1734617433430,-503.07,0.00021068,2]
[345996113,1734617433440,-492.58,0.00021068,2]
[345996114,1734617433450,-498.41,0.00021068,2]
[345996115,1734617433460,-490.86,0.00021068,2]
[345996116,1734617433470,-503.31,0.00021068,2]
[345996117,1734617433480,-508.67,0.00021068,2]
[345996118,1734617433491,-493.67,0.00021068,2]
[345996119,1734617433501,-490.06,0.00021068,2]
[345996120,1734617433511,-506.56,0.00021068,2]
[345996121,1734617433521,-506.84,0.00021068,2]
[345996122,1734617433532,-492.58,0.00021068,2]
[345996123,1734617433775,-491.33,0.00021068,2]
[345996124,1734617433786,-21562.57142205,0.00021106,2]
[345996125,1734617433797,-250.0,0.00021112,2]
[345996126,1734617433807,-500.0,0.00021164,2]
[345996127,1734617433817,-600.0,0.00021164,2]
[345996128,1734617433828,-1993.4253,0.00021177,2]
[345996129,1734617433837,-40708.43564002,0.00021198,2]
[345996130,1734617433847,-357.4979698,0.00021438,2]
[345996131,1734617433856,-21562.57142205,0.00021538,2]
[345996132,1734617433866,-4334.46454936,0.00021562,2]
[345996133,1734617433883,-718.78087629,0.00021562,2]
[345996134,1734617433894,-524.7693386,0.00021562,2]
[345996135,1734617434009,1388.88889,0.00017758,2]
[345996140,1734617438319,-510.348258,0.00021562,2]
[345996141,1734617438418,-10064.51988042,0.00021562,2]
[345996142,1734617438593,-1640.67367292,0.00021562,2]
[345996143,1734617438687,-4810.95392441,0.00021562,2]
[345996144,1734617438697,-204.37,0.00021569,2]
[345996145,1734617438707,-494.17,0.0002157,2]
[345996146,1734617438716,-508.87,0.0002157,2]
[345996147,1734617438725,-509.44,0.0002157,2]
[345996148,1734617438735,-254.96,0.00021592,2]
[345996149,1734617438744,-227.21781422,0.00021617,2]
[345996150,1734617438754,-40708.43564002,0.00021618,2]
[345996151,1734617438764,-307.43647569,0.00021646,5]
[345996152,1734617438773,-400.0,0.000217,7]
[345996153,1734617438783,-400.4626,0.00021717,2]
[345996155,1734617438792,-5000.0,0.00021717,2]
[345996156,1734617438802,-509.94,0.00021775,2]
[345996157,1734617438811,-509.89,0.00021775,2]
[345996158,1734617438820,-800.0,0.000218,7]
[345996159,1734617438830,-153.14,0.00021807,2]
[345996160,1734617438839,-19567.41210185,0.00021817,2]
[345996170,1734617440439,-480.09979933,0.00021817,2]
[345996171,1734617440561,-862.3159344,0.00021817,2]
[345996172,1734617440667,-28189.16202025,0.00021817,2]
[345996173,1734617440678,-427.77,0.00021817,2]
[345996174,1734617440842,-511.4429211,0.00021817,2]
[345996175,1734617440854,-2646.33936361,0.00021817,2]
[345996176,1734617440866,-6535.06181227,0.00021817,2]
[345996193,1734617443443,-2927.63798674,0.00021817,2]
[345996194,1734617443454,-15931.91387679,0.00021817,2]
[345996198,1734617443791,-1492.51498366,0.00021817,2]
[345996199,1734617443800,-1303.5496,0.00021817,2]
[345996200,1734617443810,-150.0,0.00021861,2]
[345996201,1734617443820,-1200.0,0.000219,7]
[345996202,1734617443830,-197.442617,0.00021917,4]
[345996203,1734617443839,-388.290098,0.00021917,4]
[345996204,1734617443849,-422.28840454,0.00021917,4]
[345996205,1734617443858,-546.27234903,0.00021917,4]
[345996206,1734617443867,-505.72254853,0.00021917,4]
[345996208,1734617443876,-527.76824926,0.00021917,4]
[345996209,1734617443886,-502.27714388,0.00021917,4]
[345996210,1734617443895,-500.0,0.00021917,4]
[345996211,1734617443904,-502.89254582,0.00021917,4]
[345996212,1734617443913,-500.0,0.00021917,4]
[345996213,1734617443923,-500.0,0.00021917,4]
[345996214,1734617443931,-500.0,0.00021917,4]
[345996215,1734617443941,-500.0,0.00021917,4]
[345996216,1734617443950,-1401.04,0.00021917,4]
[345996217,1734617443959,-212.3882656,0.00021917,4]
[345996218,1734617443968,-500.0,0.00021917,4]
[345996219,1734617443977,-500.0,0.00021917,4]
[345996220,1734617443987,-500.0,0.00021917,4]
[345996221,1734617443996,-500.0,0.00021917,4]
[345996222,1734617444006,-500.0,0.00021917,4]
[345996223,1734617444015,-500.0,0.00021917,4]
[345996224,1734617444024,-500.0,0.00021917,4]
[345996225,1734617444033,-500.0,0.00021917,4]
[345996226,1734617444043,-392.47379803,0.00021917,4]
[345996227,1734617444052,-500.0,0.00021917,4]
[345996228,1734617444062,-500.0,0.00021917,4]
[345996229,1734617444072,-500.0,0.00021917,4]
[345996230,1734617444081,-500.0,0.00021917,4]
[345996231,1734617444091,-232.90464756,0.00021917,4]
[345996232,1734617444101,-500.0,0.00021917,4]
[345996233,1734617444110,-500.0,0.00021917,4]
[345996234,1734617444119,-500.0,0.00021917,4]
[345996235,1734617444129,-500.0,0.00021917,4]
[345996236,1734617444138,-500.0,0.00021917,4]
[345996237,1734617444148,-500.0,0.00021917,4]
[345996238,1734617444157,-502.86235044,0.00021917,4]
[345996239,1734617444167,-500.0,0.00021917,4]
[345996240,1734617444176,-461.17920756,0.00021917,4]
[345996241,1734617444186,-503.36812847,0.00021917,4]
[345996242,1734617444195,-500.0,0.00021917,4]
[345996243,1734617444205,-501.86115558,0.00021917,4]
[345996244,1734617444214,-500.0,0.00021917,4]
[345996245,1734617444224,-523.55148682,0.00021917,4]
[345996246,1734617444232,-500.0,0.00021917,4]
[345996247,1734617444242,-500.0,0.00021917,4]
[345996248,1734617444252,-500.0,0.00021917,4]
[345996249,1734617444262,-500.0,0.00021917,4]
[345996250,1734617444271,-500.0,0.00021917,4]
[345996251,1734617444280,-500.0,0.00021917,4]
[345996252,1734617444289,-500.0,0.00021917,4]
[345996253,1734617444299,-500.0,0.00021917,4]
[345996254,1734617444308,-500.0,0.00021917,3]
[345996255,1734617444317,-500.0,0.00021917,4]
[345996256,1734617444326,-500.0,0.00021917,4]
[345996257,1734617444335,-500.0,0.00021917,4]
[345996258,1734617444344,-500.0,0.00021917,4]
[345996259,1734617444354,-500.0,0.00021917,4]
[345996260,1734617444363,-500.0,0.00021917,4]
[345996261,1734617444372,-511.90422511,0.00021917,4]
[345996262,1734617444381,-500.0,0.00021917,4]
[345996263,1734617444391,-500.0,0.00021917,4]
[345996264,1734617444400,-500.57721591,0.00021917,4]
[345996265,1734617444409,-503.22492874,0.00021917,4]
[345996266,1734617444419,-500.0,0.00021917,4]
[345996267,1734617444429,-500.0,0.00021917,4]
[345996268,1734617444438,-380.40529196,0.00021917,4]
[345996269,1734617444448,-500.0,0.00021917,4]
[345996270,1734617444457,-500.0,0.00021917,4]
[345996271,1734617444466,-500.0,0.00021917,4]
[345996272,1734617444476,-500.0,0.00021917,4]
[345996273,1734617444485,-500.0,0.00021917,4]
[345996274,1734617444494,-500.0,0.00021917,4]
[345996275,1734617444504,-500.93,0.00021917,4]
[345996276,1734617444514,-500.0,0.00021917,4]
[345996277,1734617444524,-500.0,0.00021917,4]
[345996278,1734617444534,-500.0,0.00021917,4]
[345996279,1734617444544,-500.0,0.00021917,4]
[345996280,1734617444553,-500.0,0.00021917,4]
[345996281,1734617444563,-500.0,0.00021917,4]
[345996282,1734617444573,-500.0,0.00021917,4]
[345996283,1734617444583,-500.0,0.00021917,4]
[345996284,1734617444593,-500.0,0.00021917,4]
[345996285,1734617444602,-500.0,0.00021917,4]
[345996286,1734617444611,-500.0,0.00021917,4]
[345996287,1734617444621,-545.16,0.00021917,4]
[345996288,1734617444631,-500.0,0.00021917,4]
[345996289,1734617444644,-502.06591411,0.00021917,4]
[345996290,1734617444654,-151.2289802,0.00021917,4]
[345996291,1734617444663,-500.0,0.00021917,4]
[345996292,1734617444673,-500.0,0.00021917,4]
[345996293,1734617444683,-501.03443467,0.00021917,4]
[345996294,1734617444692,-500.0,0.00021917,4]
[345996295,1734617444701,-500.0,0.00021917,4]
[345996296,1734617444712,-673.86,0.00021917,4]
[345996297,1734617444722,-500.0,0.00021917,4]
[345996298,1734617444731,-500.0,0.00021917,4]
[345996299,1734617444740,-500.0,0.00021917,4]
[345996300,1734617444749,-500.99025944,0.00021917,4]
[345996301,1734617444759,-500.96873345,0.00021917,4]
[345996302,1734617444768,-500.0,0.00021917,4]
[345996303,1734617444778,-503.24639597,0.00021917,4]
[345996304,1734617444787,-500.0,0.00021917,4]
[345996305,1734617444797,-509.93712545,0.00021917,4]
[345996306,1734617444806,-503.6627397,0.00021917,4]
[345996307,1734617444816,-500.0,0.00021917,4]
[345996308,1734617444825,-500.0,0.00021917,4]
[345996309,1734617444835,-501.71787192,0.00021917,4]
[345996310,1734617444844,-500.0,0.00021917,4]
[345996311,1734617444854,-500.0,0.00021917,4]
[345996312,1734617444864,-504.64802436,0.00021917,4]
[345996313,1734617444874,-500.0,0.00021917,4]
[345996314,1734617444884,-573.10732797,0.00021917,4]
[345996315,1734617444893,-500.0,0.00021917,4]
[345996316,1734617444903,-500.0,0.00021917,4]
[345996317,1734617444912,-500.0,0.00021917,4]
[345996318,1734617444922,-500.0,0.00021917,4]
[345996319,1734617444931,-500.0,0.00021917,4]
[345996320,1734617444940,-502.61949033,0.00021917,4]
[345996321,1734617444950,-500.0,0.00021917,4]
[345996322,1734617444959,-500.0,0.00021917,4]
[345996323,1734617444968,-500.0,0.00021917,4]
[345996324,1734617444978,-500.0,0.00021917,4]
[345996325,1734617444987,-500.0,0.00021917,4]
[345996326,1734617444996,-500.0,0.00021917,4]
[345996327,1734617445007,-500.0,0.00021917,4]
[345996328,1734617445223,-500.0,0.00021917,4]
[345996329,1734617445234,-500.0,0.00021917,4]
[345996330,1734617445243,-501.30847271,0.00021917,4]
[345996331,1734617445254,-501.90795974,0.00021917,4]
[345996332,1734617445263,-500.0,0.00021917,4]
[345996333,1734617445273,-500.0,0.00021917,4]
[345996334,1734617445282,-529.39078994,0.00021917,4]
[345996335,1734617445292,-500.0,0.00021917,4]
[345996336,1734617445301,-500.0,0.00021917,4]
[345996337,1734617445311,-500.0,0.00021917,4]
[345996338,1734617445321,-588.8457914,0.00021917,4]
[345996339,1734617445330,-500.0,0.00021917,4]
[345996340,1734617445339,-501.16037362,0.00021917,4]
[345996341,1734617445349,-500.95269508,0.00021917,4]
[345996342,1734617445359,-500.0,0.00021917,4]
[345996343,1734617445368,-500.0,0.00021917,4]
[345996344,1734617445377,-500.0,0.00021917,4]
[345996345,1734617445387,-500.0,0.00021917,4]
[345996346,1734617445396,-505.26735119,0.00021917,4]
[345996347,1734617445406,-500.0,0.00021917,4]
[345996348,1734617445416,-500.0,0.00021917,4]
[345996349,1734617445425,-500.0,0.00021917,4]
[345996350,1734617445434,-500.0,0.00021917,4]
[345996351,1734617445444,-500.0,0.00021917,4]
[345996352,1734617445453,-500.0,0.00021917,4]
[345996353,1734617445462,-500.0,0.00021917,4]
[345996354,1734617445471,-500.0,0.00021917,4]
[345996355,1734617445480,-500.0,0.00021917,4]
[345996356,1734617445490,-500.0,0.00021917,4]
[345996357,1734617445500,-504.31202041,0.00021917,4]
[345996358,1734617445509,-408.3586888,0.00021917,4]
[345996359,1734617445519,-500.0,0.00021917,4]
[345996360,1734617445528,-494.0,0.00021917,4]
[345996361,1734617445539,-500.0,0.00021917,4]
[345996362,1734617445548,-500.0,0.00021917,4]
[345996363,1734617445558,-500.0,0.00021917,4]
[345996364,1734617445568,-500.0,0.00021917,4]
[345996365,1734617445578,-502.02976132,0.00021917,4]
[345996366,1734617445587,-500.0,0.00021917,4]
[345996367,1734617445596,-500.0,0.00021917,4]
[345996368,1734617445606,-500.0,0.00021917,4]
[345996369,1734617445615,-502.1153374,0.00021917,4]
[345996370,1734617445625,-509.25178991,0.00021917,4]
[345996371,1734617445635,-500.0,0.00021917,4]
[345996372,1734617445648,-608.03008007,0.00021917,4]
[345996373,1734617445657,-500.0,0.00021917,4]
[345996374,1734617445667,-500.0,0.00021917,4]
[345996375,1734617445676,-500.0,0.00021917,4]
[345996376,1734617445685,-500.0,0.00021917,4]
[345996377,1734617445695,-500.0,0.00021917,4]
[345996378,1734617445704,-500.0,0.00021917,4]
[345996379,1734617445714,-502.86349888,0.00021917,4]
[345996380,1734617445723,-500.0,0.00021917,4]
[345996381,1734617445732,-491.94474219,0.00021917,4]
[345996382,1734617445742,-500.0,0.00021917,4]
[345996383,1734617445751,-500.0,0.00021917,2]
[345996384,1734617445761,-500.0,0.00021917,4]
[345996385,1734617445771,-500.0,0.00021917,4]
[345996386,1734617445780,-500.0,0.00021917,4]
[345996387,1734617445790,-500.0,0.00021917,4]
[345996388,1734617445800,-500.0,0.00021917,4]
[345996389,1734617445809,-500.0,0.00021917,4]
[345996390,1734617445819,-500.0,0.00021917,4]
[345996391,1734617445829,-500.0,0.00021917,4]
[345996392,1734617445838,-500.0,0.00021917,4]
[345996393,1734617445847,-500.0,0.00021917,4]
[345996394,1734617445857,-500.0,0.00021917,4]
[345996395,1734617445866,-500.0,0.00021917,4]
[345996396,1734617445875,-500.0,0.00021917,4]
[345996397,1734617445885,-500.0,0.00021917,4]
[345996398,1734617445895,-504.04852727,0.00021917,4]
[345996399,1734617445904,-500.0,0.00021917,4]
[345996400,1734617445914,-502.94420663,0.00021917,4]
[345996401,1734617445923,-500.0,0.00021917,4]
[345996402,1734617445932,-500.0,0.00021917,4]
[345996403,1734617445942,-500.0,0.00021917,4]
[345996404,1734617445952,-500.0,0.00021917,4]
[345996405,1734617445962,-502.00712188,0.00021917,4]
[345996406,1734617445972,-500.0,0.00021917,4]
[345996407,1734617445981,-500.0,0.00021917,4]
[345996408,1734617445990,-500.0,0.00021917,4]
[345996409,1734617446001,-601.41148117,0.00021917,4]
[345996410,1734617446011,-500.0,0.00021917,4]
[345996411,1734617446021,-500.0,0.00021917,4]
[345996412,1734617446030,-501.13560486,0.00021917,4]
[345996413,1734617446040,-500.0,0.00021917,4]
[345996414,1734617446050,-500.0,0.00021917,4]
[345996415,1734617446059,-500.0,0.00021917,4]
[345996416,1734617446069,-500.0,0.00021917,4]
[345996417,1734617446079,-500.0,0.00021917,4]
[345996418,1734617446089,-500.0,0.00021917,4]
[345996419,1734617446099,-500.0,0.00021917,4]
[345996420,1734617446108,-500.0,0.00021917,4]
[345996421,1734617446118,-506.35632909,0.00021917,4]
[345996422,1734617446128,-500.0,0.00021917,4]
[345996423,1734617446137,-500.0,0.00021917,4]
[345996424,1734617446147,-500.0,0.00021917,4]
[345996425,1734617446156,-501.9046427,0.00021917,4]
[345996426,1734617446166,-500.0,0.00021917,4]
[345996427,1734617446176,-500.0,0.00021917,4]
[345996429,1734617446185,-500.0,0.00021917,4]
[345996431,1734617446195,-507.9926794,0.00021917,4]
[345996433,1734617446205,-500.0,0.00021917,4]
[345996434,1734617446214,-500.0,0.00021917,4]
[345996435,1734617446224,-500.0,0.00021917,4]
[345996436,1734617446233,-500.0,0.00021917,4]
[345996437,1734617446242,-814.84,0.00021917,4]
[345996438,1734617446252,-552.1,0.00021917,4]
[345996439,1734617446261,-500.0,0.00021917,4]
[345996440,1734617446271,-500.0,0.00021917,4]
[345996441,1734617446280,-500.0,0.00021917,4]
[345996443,1734617446289,-501.47375587,0.00021917,4]
[345996444,1734617446299,-500.0,0.00021917,4]
[345996445,1734617446309,-500.0,0.00021917,2]
[345996446,1734617446318,-502.06981764,0.00021917,4]
[345996447,1734617446328,-500.0,0.00021917,4]
[345996448,1734617446337,-500.0,0.00021917,4]
[345996449,1734617446347,-500.0,0.00021917,4]
[345996450,1734617446357,-500.0,0.00021917,4]
[345996451,1734617446366,-500.0,0.00021917,4]
[345996452,1734617446375,-500.0,0.00021917,4]
[345996453,1734617446385,-500.0,0.00021917,4]
[345996454,1734617446394,-500.0,0.00021917,4]
[345996455,1734617446404,-500.0,0.00021917,4]
[345996456,1734617446413,-617.87,0.00021917,4]
[345996457,1734617446423,-500.0,0.00021917,4]
[345996458,1734617446432,-500.0,0.00021917,4]
[345996459,1734617446442,-500.0,0.00021917,4]
[345996460,1734617446451,-500.0,0.00021917,4]
[345996461,1734617446461,-502.69470658,0.00021917,4]
[345996462,1734617446470,-500.0,0.00021917,4]
[345996463,1734617446480,-500.0,0.00021917,4]
[345996464,1734617446488,-500.0,0.00021917,4]
[345996465,1734617446498,-500.0,0.00021917,4]
[345996466,1734617446510,-500.0,0.00021917,4]
[345996467,1734617446520,-500.0,0.00021917,4]
[345996468,1734617446529,-502.0736029,0.00021917,4]
[345996469,1734617446539,-500.0,0.00021917,4]
[345996470,1734617446548,-500.0,0.00021917,4]
[345996471,1734617446557,-500.0,0.00021917,4]
[345996472,1734617446567,-505.60316323,0.00021917,4]
[345996473,1734617446576,-500.0,0.00021917,4]
[345996474,1734617446586,-500.0,0.00021917,4]
[345996475,1734617446595,-644.18,0.00021917,4]
[345996476,1734617446604,-500.0,0.00021917,4]
[345996477,1734617446613,-500.0,0.00021917,4]
[345996478,1734617446623,-500.0,0.00021917,4]
[345996479,1734617446632,-502.66139794,0.00021917,4]
[345996480,1734617446645,-500.0,0.00021917,4]
[345996481,1734617446654,-501.99308385,0.00021917,4]
[345996482,1734617446664,-500.0,0.00021917,4]
[345996483,1734617446673,-500.0,0.00021917,4]
[345996484,1734617446682,-502.25601441,0.00021917,4]
[345996485,1734617446691,-203.89809909,0.00021917,4]
[345996486,1734617446700,-500.0,0.00021917,4]
[345996487,1734617446709,-500.58168445,0.00021917,4]
[345996488,1734617446718,-500.0,0.00021917,4]
[345996489,1734617446729,-500.0,0.00021917,4]
[345996490,1734617446738,-500.0,0.00021917,4]
[345996491,1734617446747,-500.0,0.00021917,4]